[Event "Titled Tuesday Blitz March 01 Late 2022"]
[White "Gareyev, Timur"]
[Black "Thavandiran, Shiyam"]
[WhiteFideId "14200937"]
[BlackFideId "2605058"]
[WhiteElo "2586"]
[BlackElo "2357"]
[Result "1-0"]
[Round "09"]
[TimeControl "180+1"]
[Date "2022.03.01"]
[WhiteClock "0:00:03"]
[BlackClock "0:00:06"]

1. d4 {[%clk 0:03:00]}  e6 {[%clk 0:02:55]} 2. c4 {[%clk 0:03:00]}  Bb4+ {[%clk 0:02:52]} 3. Nd2 {[%clk 0:02:58]}  c5 {[%clk 0:02:47]} 4. a3 {[%clk 0:02:51]}  Bxd2+ {[%clk 0:02:47]} 5. Qxd2 {[%clk 0:02:52]}  cxd4 {[%clk 0:02:47]} 6. Nf3 {[%clk 0:02:52]}  Nf6 {[%clk 0:02:44]} 7. g3 {[%clk 0:02:48]}  Nc6 {[%clk 0:02:40]} 8. Nxd4 {[%clk 0:02:36]}  O-O {[%clk 0:02:29]} 9. Bg2 {[%clk 0:02:35]}  d5 {[%clk 0:02:26]} 10. O-O {[%clk 0:02:32]}  Qb6 {[%clk 0:02:16]} 11. Rd1 {[%clk 0:02:20]}  Bd7 {[%clk 0:01:23]} 12. cxd5 {[%clk 0:02:18]}  exd5 {[%clk 0:01:23]} 13. b3 {[%clk 0:02:13]}  Rfe8 {[%clk 0:01:15]} 14. Bb2 {[%clk 0:02:13]}  Ne4 {[%clk 0:01:11]} 15. Qf4 {[%clk 0:02:04]}  Nxd4 {[%clk 0:01:04]} 16. Bxd4 {[%clk 0:02:05]}  Qxb3 {[%clk 0:01:02]} 17. Rab1 {[%clk 0:01:56]}  Qxa3 {[%clk 0:00:48]} 18. Rxb7 {[%clk 0:01:53]}  Qa4 {[%clk 0:00:25]} 19. Qc1 {[%clk 0:01:12]}  Rac8 {[%clk 0:00:22]} 20. Qa1 {[%clk 0:01:12]}  Qxa1 {[%clk 0:00:09]} 21. Rxa1 {[%clk 0:01:13]}  Be6 {[%clk 0:00:06]} 22. Rbxa7 {[%clk 0:01:11]}  Nc3 {[%clk 0:00:05]} 23. Bf3 {[%clk 0:01:09]}  Nb5 {[%clk 0:00:04]} 24. R7a4 {[%clk 0:01:07]}  Nxd4 {[%clk 0:00:01]} 25. Rxd4 {[%clk 0:01:08]}  Rcd8 {[%clk 0:00:02]} 26. Rad1 {[%clk 0:01:07]}  g6 {[%clk 0:00:02]} 27. h4 {[%clk 0:01:05]}  Rc8 {[%clk 0:00:02]} 28. e3 {[%clk 0:00:58]}  Rc5 {[%clk 0:00:03]} 29. g4 {[%clk 0:00:54]}  Kg7 {[%clk 0:00:03]} 30. Kg2 {[%clk 0:00:54]}  h6 {[%clk 0:00:04]} 31. Kg3 {[%clk 0:00:54]}  Kf6 {[%clk 0:00:04]} 32. Bxd5 {[%clk 0:00:50]}  Bxd5 {[%clk 0:00:05]} 33. Rxd5 {[%clk 0:00:51]}  Rxd5 {[%clk 0:00:05]} 34. Rxd5 {[%clk 0:00:51]}  Re6 {[%clk 0:00:06]} 35. Kf4 {[%clk 0:00:51]}  Ra6 {[%clk 0:00:06]} 36. e4 {[%clk 0:00:50]}  Ra4 {[%clk 0:00:06]} 37. f3 {[%clk 0:00:49]}  Ke6 {[%clk 0:00:06]} 38. Rd8 {[%clk 0:00:45]}  Kf6 {[%clk 0:00:05]} 39. Rd6+ {[%clk 0:00:45]}  Ke7 {[%clk 0:00:05]} 40. Rb6 {[%clk 0:00:44]}  Rc4 {[%clk 0:00:05]} 41. Ke5 {[%clk 0:00:26]}  Rc5+ {[%clk 0:00:04]} 42. Kd4 {[%clk 0:00:27]}  Ra5 {[%clk 0:00:05]} 43. Rb7+ {[%clk 0:00:20]}  Kf6 {[%clk 0:00:05]} 44. Rb6+ {[%clk 0:00:21]}  Kg7 {[%clk 0:00:05]} 45. Ke3 {[%clk 0:00:20]}  Ra3+ {[%clk 0:00:05]} 46. Kf4 {[%clk 0:00:20]}  Rc3 {[%clk 0:00:05]} 47. e5 {[%clk 0:00:19]}  Rc4+ {[%clk 0:00:06]} 48. Ke3 {[%clk 0:00:19]}  Rc3+ {[%clk 0:00:06]} 49. Ke4 {[%clk 0:00:19]}  Rc4+ {[%clk 0:00:06]} 50. Kd3 {[%clk 0:00:19]}  Ra4 {[%clk 0:00:05]} 51. Rb7 {[%clk 0:00:19]}  Kf8 {[%clk 0:00:04]} 52. Ke3 {[%clk 0:00:16]}  h5 {[%clk 0:00:03]} 53. gxh5 {[%clk 0:00:14]}  gxh5 {[%clk 0:00:04]} 54. f4 {[%clk 0:00:14]}  Ra3+ {[%clk 0:00:05]} 55. Ke4 {[%clk 0:00:14]}  Rh3 {[%clk 0:00:03]} 56. f5 {[%clk 0:00:12]}  Rxh4+ {[%clk 0:00:03]} 57. Kd5 {[%clk 0:00:13]}  Rf4 {[%clk 0:00:03]} 58. f6 {[%clk 0:00:11]}  Kg8 {[%clk 0:00:03]} 59. Rb8+ {[%clk 0:00:11]}  Kh7 {[%clk 0:00:03]} 60. Kd6 {[%clk 0:00:07]}  Rf5 {[%clk 0:00:03]} 61. Rf8 {[%clk 0:00:04]}  Kg6 {[%clk 0:00:03]} 62. Rg8+ {[%clk 0:00:04]}  Kh6 {[%clk 0:00:04]} 63. Rg7 {[%clk 0:00:03]}  h4 {[%clk 0:00:04]} 64. Rxf7 {[%clk 0:00:03]}  h3 {[%clk 0:00:05]} 65. Rf8 {[%clk 0:00:03]}  Rh5 {[%clk 0:00:04]} 66. Rh8+ {[%clk 0:00:02]}  Kg6 {[%clk 0:00:05]} 67. Rxh5 {[%clk 0:00:03]}  Kxh5 {[%clk 0:00:06]} 68. f7 {[%clk 0:00:03]} 1-0


[Site "https://www.chess.com"]

[Event "Titled Tuesday Blitz March 01 Late 2022"]
[White "Gelman, Alexander"]
[Black "Piesik, Piotr"]
[WhiteFideId "4118316"]
[BlackFideId "1136194"]
[WhiteElo "2375"]
[BlackElo "2232"]
[Result "1-0"]
[Round "09"]
[TimeControl "180+1"]
[Date "2022.03.01"]
[WhiteClock "0:00:08"]
[BlackClock "0:00:02"]

1. d4 {[%clk 0:02:56]}  c5 {[%clk 0:02:59]} 2. d5 {[%clk 0:02:56]}  e5 {[%clk 0:02:59]} 3. Nc3 {[%clk 0:02:56]}  d6 {[%clk 0:03:00]} 4. e4 {[%clk 0:02:56]}  Be7 {[%clk 0:03:00]} 5. Nf3 {[%clk 0:02:55]}  a6 {[%clk 0:03:00]} 6. a4 {[%clk 0:02:55]}  Bg4 {[%clk 0:03:00]} 7. h3 {[%clk 0:02:55]}  Bxf3 {[%clk 0:03:00]} 8. Qxf3 {[%clk 0:02:55]}  Bg5 {[%clk 0:03:01]} 9. Bxg5 {[%clk 0:02:55]}  Qxg5 {[%clk 0:03:01]} 10. h4 {[%clk 0:02:56]}  Qe7 {[%clk 0:02:58]} 11. Qg4 {[%clk 0:02:56]}  Nd7 {[%clk 0:02:53]} 12. Qxg7 {[%clk 0:02:53]}  Qf6 {[%clk 0:02:42]} 13. Qxf6 {[%clk 0:02:49]}  Ngxf6 {[%clk 0:02:43]} 14. g3 {[%clk 0:02:44]}  h5 {[%clk 0:02:41]} 15. Bh3 {[%clk 0:02:43]}  Ng4 {[%clk 0:02:39]} 16. Bxg4 {[%clk 0:02:37]}  hxg4 {[%clk 0:02:39]} 17. Ke2 {[%clk 0:02:36]}  Ke7 {[%clk 0:02:37]} 18. a5 {[%clk 0:02:35]}  Rhf8 {[%clk 0:02:32]} 19. Nd1 {[%clk 0:02:31]}  Nf6 {[%clk 0:02:25]} 20. Kd3 {[%clk 0:02:29]}  c4+ {[%clk 0:02:22]} 21. Ke3 {[%clk 0:02:29]}  Nd7 {[%clk 0:02:15]} 22. Ra4 {[%clk 0:02:20]}  Rac8 {[%clk 0:02:09]} 23. Nc3 {[%clk 0:02:20]}  f5 {[%clk 0:02:05]} 24. exf5 {[%clk 0:02:19]}  Rxf5 {[%clk 0:02:06]} 25. Rb4 {[%clk 0:02:15]}  Rc7 {[%clk 0:02:03]} 26. h5 {[%clk 0:02:13]}  Nf6 {[%clk 0:01:51]} 27. h6 {[%clk 0:02:11]}  Kf8 {[%clk 0:01:49]} 28. Rb6 {[%clk 0:02:08]}  Rd7 {[%clk 0:01:46]} 29. Rh4 {[%clk 0:01:20]}  Kg8 {[%clk 0:01:38]} 30. h7+ {[%clk 0:01:20]}  Kh8 {[%clk 0:01:35]} 31. Rh6 {[%clk 0:01:19]}  Rf3+ {[%clk 0:01:18]} 32. Ke2 {[%clk 0:01:19]}  e4 {[%clk 0:01:17]} 33. Nd1 {[%clk 0:01:00]}  Nxd5 {[%clk 0:01:11]} 34. Rbxd6 {[%clk 0:01:00]}  Rxd6 {[%clk 0:01:11]} 35. Rxd6 {[%clk 0:01:00]}  Nb4 {[%clk 0:01:11]} 36. Ne3 {[%clk 0:00:56]}  c3 {[%clk 0:01:00]} 37. bxc3 {[%clk 0:00:43]}  Na2 {[%clk 0:01:00]} 38. c4 {[%clk 0:00:39]}  Kxh7 {[%clk 0:00:53]} 39. Rd7+ {[%clk 0:00:35]}  Kg6 {[%clk 0:00:53]} 40. Rxb7 {[%clk 0:00:36]}  Kg5 {[%clk 0:00:41]} 41. Rb8 {[%clk 0:00:30]}  Nc3+ {[%clk 0:00:39]} 42. Ke1 {[%clk 0:00:30]}  Rf7 {[%clk 0:00:30]} 43. Rg8+ {[%clk 0:00:29]}  Kh5 {[%clk 0:00:29]} 44. Nxg4 {[%clk 0:00:27]}  Rf5 {[%clk 0:00:23]} 45. Kd2 {[%clk 0:00:20]}  Nb1+ {[%clk 0:00:21]} 46. Ke3 {[%clk 0:00:20]}  Rxa5 {[%clk 0:00:20]} 47. Kxe4 {[%clk 0:00:16]}  Nd2+ {[%clk 0:00:17]} 48. Kd3 {[%clk 0:00:16]}  Nf3 {[%clk 0:00:17]} 49. Nf6+ {[%clk 0:00:16]}  Kh6 {[%clk 0:00:17]} 50. g4 {[%clk 0:00:13]}  Rc5 {[%clk 0:00:14]} 51. Ne4 {[%clk 0:00:12]}  Rc7 {[%clk 0:00:13]} 52. c5 {[%clk 0:00:11]}  a5 {[%clk 0:00:11]} 53. g5+ {[%clk 0:00:10]}  Kh7 {[%clk 0:00:06]} 54. Ra8 {[%clk 0:00:09]}  Kg6 {[%clk 0:00:04]} 55. Rxa5 {[%clk 0:00:08]}  Ne5+ {[%clk 0:00:02]} 56. Kd4 {[%clk 0:00:08]}  Nc6+ {[%clk 0:00:01]} 57. Kd5 {[%clk 0:00:08]}  Nxa5 {[%clk 0:00:02]} 58. Kd6 {[%clk 0:00:09]}  Rc6+ {[%clk 0:00:02]} 59. Kd5 {[%clk 0:00:07]}  Rc7 {[%clk 0:00:03]} 60. f4 {[%clk 0:00:08]}  Nc6 {[%clk 0:00:02]} 61. Kd6 {[%clk 0:00:08]}  Rc8 {[%clk 0:00:02]} 62. Kd7 {[%clk 0:00:09]}  Na7 {[%clk 0:00:03]} 63. f5+ {[%clk 0:00:07]}  Kxf5 {[%clk 0:00:03]} 64. Nd6+ {[%clk 0:00:07]}  Kxg5 {[%clk 0:00:03]} 65. Nxc8 {[%clk 0:00:08]}  Nb5 {[%clk 0:00:02]} 66. Nd6 {[%clk 0:00:08]}  Nd4 {[%clk 0:00:02]} 67. c3 {[%clk 0:00:08]} 1-0


[Site "https://www.chess.com"]

[Event "Titled Tuesday Blitz March 01 Late 2022"]
[White "Gerbelli Neto, Eduardo"]
[Black "Medeiros Jr, Francisco De Assis"]
[WhiteFideId "2103281"]
[BlackFideId "2114267"]
[WhiteElo "2178"]
[BlackElo "1998"]
[Result "0-1"]
[Round "09"]
[TimeControl "180+1"]
[Date "2022.03.02"]
[WhiteClock "0:00:12"]
[BlackClock "0:00:06"]

1. e4 {[%clk 0:03:00]}  c6 {[%clk 0:02:52]} 2. d4 {[%clk 0:03:00]}  d5 {[%clk 0:02:49]} 3. exd5 {[%clk 0:03:01]}  cxd5 {[%clk 0:02:50]} 4. c4 {[%clk 0:03:02]}  Nf6 {[%clk 0:02:50]} 5. Nc3 {[%clk 0:03:02]}  Nc6 {[%clk 0:02:51]} 6. Nf3 {[%clk 0:03:03]}  Be6 {[%clk 0:02:51]} 7. c5 {[%clk 0:02:52]}  g6 {[%clk 0:02:48]} 8. Bb5 {[%clk 0:02:49]}  Bg7 {[%clk 0:02:46]} 9. Ne5 {[%clk 0:02:50]}  Rc8 {[%clk 0:02:43]} 10. O-O {[%clk 0:02:43]}  O-O {[%clk 0:02:41]} 11. Nxc6 {[%clk 0:02:44]}  bxc6 {[%clk 0:02:41]} 12. Ba6 {[%clk 0:02:44]}  Rb8 {[%clk 0:02:39]} 13. Qe2 {[%clk 0:02:27]}  Bf5 {[%clk 0:02:37]} 14. Re1 {[%clk 0:02:21]}  Re8 {[%clk 0:02:32]} 15. Bf4 {[%clk 0:02:10]}  e5 {[%clk 0:02:25]} 16. dxe5 {[%clk 0:01:49]}  Nd7 {[%clk 0:01:58]} 17. Bd3 {[%clk 0:01:42]}  Bxd3 {[%clk 0:01:53]} 18. Qxd3 {[%clk 0:01:43]}  Rxb2 {[%clk 0:01:53]} 19. Qd4 {[%clk 0:01:05]}  Qb8 {[%clk 0:01:22]} 20. Bg3 {[%clk 0:01:05]}  Nxe5 {[%clk 0:01:19]} 21. Qf4 {[%clk 0:00:40]}  Nd3 {[%clk 0:01:05]} 22. Qxb8 {[%clk 0:00:39]}  Rexb8 {[%clk 0:00:56]} 23. Bxb8 {[%clk 0:00:36]}  Rxb8 {[%clk 0:00:48]} 24. Re3 {[%clk 0:00:19]}  Bxc3 {[%clk 0:00:41]} 25. Rf1 {[%clk 0:00:19]}  Nf4 {[%clk 0:00:10]} 26. g3 {[%clk 0:00:20]}  Bd4 {[%clk 0:00:09]} 27. gxf4 {[%clk 0:00:19]}  Bxe3 {[%clk 0:00:09]} 28. fxe3 {[%clk 0:00:20]}  Rb2 {[%clk 0:00:07]} 29. Rf2 {[%clk 0:00:20]}  Rb1+ {[%clk 0:00:07]} 30. Kg2 {[%clk 0:00:20]}  Rb5 {[%clk 0:00:07]} 31. Rc2 {[%clk 0:00:20]}  f5 {[%clk 0:00:07]} 32. Kf3 {[%clk 0:00:19]}  a5 {[%clk 0:00:07]} 33. Ke2 {[%clk 0:00:19]}  Kf7 {[%clk 0:00:07]} 34. Kd3 {[%clk 0:00:20]}  Ke6 {[%clk 0:00:07]} 35. Kd4 {[%clk 0:00:20]}  Rb4+ {[%clk 0:00:08]} 36. Kd3 {[%clk 0:00:20]}  Ra4 {[%clk 0:00:07]} 37. h4 {[%clk 0:00:17]}  Ra3+ {[%clk 0:00:07]} 38. Kd4 {[%clk 0:00:16]}  Ra4+ {[%clk 0:00:07]} 39. Kd3 {[%clk 0:00:16]}  Rb4 {[%clk 0:00:07]} 40. h5 {[%clk 0:00:13]}  Rb1 {[%clk 0:00:07]} 41. hxg6 {[%clk 0:00:13]}  hxg6 {[%clk 0:00:08]} 42. Rg2 {[%clk 0:00:12]}  Kf6 {[%clk 0:00:07]} 43. Rb2 {[%clk 0:00:12]}  Rxb2 {[%clk 0:00:06]} 0-1


[Site "https://www.chess.com"]

[Event "Titled Tuesday Blitz March 01 Late 2022"]
[White "Ibarra Jerez, Jose Carlos"]
[Black "Suarez Uriel, Adrian"]
[WhiteFideId "2226332"]
[BlackFideId "22230874"]
[WhiteElo "2626"]
[BlackElo "2316"]
[Result "1-0"]
[Round "09"]
[TimeControl "180+1"]
[Date "2022.03.01"]
[WhiteClock "0:02:10"]
[BlackClock "0:00:06"]

1. d4 {[%clk 0:03:00]}  Nf6 {[%clk 0:02:58]} 2. Bf4 {[%clk 0:03:00]}  d6 {[%clk 0:02:53]} 3. Nc3 {[%clk 0:03:00]}  e6 {[%clk 0:02:49]} 4. e4 {[%clk 0:03:00]}  Be7 {[%clk 0:02:50]} 5. Nf3 {[%clk 0:02:59]}  O-O {[%clk 0:02:50]} 6. Bd3 {[%clk 0:03:00]}  a6 {[%clk 0:02:50]} 7. h4 {[%clk 0:02:57]}  b5 {[%clk 0:02:48]} 8. e5 {[%clk 0:02:57]}  dxe5 {[%clk 0:01:50]} 9. dxe5 {[%clk 0:02:56]}  Ng4 {[%clk 0:01:45]} 10. Bxh7+ {[%clk 0:02:19]}  Kxh7 {[%clk 0:01:43]} 11. Ng5+ {[%clk 0:02:18]}  Kg8 {[%clk 0:01:06]} 12. Qxg4 {[%clk 0:02:18]}  f5 {[%clk 0:00:16]} 13. Qh5 {[%clk 0:02:15]}  Bxg5 {[%clk 0:00:16]} 14. hxg5 {[%clk 0:02:14]}  Re8 {[%clk 0:00:08]} 15. g6 {[%clk 0:02:12]}  Qd4 {[%clk 0:00:06]} 16. Qh8# {[%clk 0:02:10]} 1-0


[Site "https://www.chess.com"]

[Event "Titled Tuesday Blitz March 01 Late 2022"]
[White "Indjic, Aleksandar"]
[Black "Daggupati, Balaji"]
[WhiteFideId "911925"]
[BlackFideId "2090759"]
[WhiteElo "2616"]
[BlackElo "2752"]
[Result "1-0"]
[Round "09"]
[TimeControl "180+1"]
[Date "2022.03.01"]
[WhiteClock "0:00:25"]
[BlackClock "0:00:01"]

1. d4 {[%clk 0:03:00]}  d5 {[%clk 0:02:59]} 2. Nf3 {[%clk 0:03:00]}  Nf6 {[%clk 0:02:59]} 3. Bf4 {[%clk 0:03:01]}  c5 {[%clk 0:02:59]} 4. e3 {[%clk 0:03:01]}  Nc6 {[%clk 0:02:59]} 5. Nbd2 {[%clk 0:03:01]}  cxd4 {[%clk 0:02:53]} 6. exd4 {[%clk 0:03:01]}  Bf5 {[%clk 0:02:54]} 7. Bb5 {[%clk 0:02:59]}  e6 {[%clk 0:02:49]} 8. Ne5 {[%clk 0:02:55]}  Qb6 {[%clk 0:02:49]} 9. c4 {[%clk 0:02:52]}  dxc4 {[%clk 0:02:50]} 10. a4 {[%clk 0:02:46]}  Bb4 {[%clk 0:02:39]} 11. O-O {[%clk 0:02:45]}  O-O {[%clk 0:02:21]} 12. Bxc6 {[%clk 0:02:37]}  bxc6 {[%clk 0:02:20]} 13. Ndxc4 {[%clk 0:02:36]}  Qa6 {[%clk 0:02:12]} 14. Bd2 {[%clk 0:02:27]}  Rab8 {[%clk 0:02:07]} 15. Bc3 {[%clk 0:02:18]}  Rfd8 {[%clk 0:02:03]} 16. Ne3 {[%clk 0:02:14]}  Bg6 {[%clk 0:01:57]} 17. Qf3 {[%clk 0:02:07]}  Nd5 {[%clk 0:01:46]} 18. Nxd5 {[%clk 0:02:04]}  cxd5 {[%clk 0:01:47]} 19. h4 {[%clk 0:02:03]}  Bxc3 {[%clk 0:01:41]} 20. bxc3 {[%clk 0:02:04]}  Qb7 {[%clk 0:01:37]} 21. h5 {[%clk 0:01:51]}  Be4 {[%clk 0:01:37]} 22. Qg3 {[%clk 0:01:50]}  h6 {[%clk 0:01:29]} 23. Rfe1 {[%clk 0:01:49]}  Bf5 {[%clk 0:01:27]} 24. Re3 {[%clk 0:01:47]}  Qe7 {[%clk 0:01:23]} 25. Nc6 {[%clk 0:01:44]}  Qb7 {[%clk 0:01:20]} 26. Nxd8 {[%clk 0:01:42]}  Rxd8 {[%clk 0:01:20]} 27. Qf4 {[%clk 0:01:33]}  Qb2 {[%clk 0:01:17]} 28. Rae1 {[%clk 0:01:31]}  Qc2 {[%clk 0:01:08]} 29. Rg3 {[%clk 0:01:30]}  Kh7 {[%clk 0:01:08]} 30. Qe5 {[%clk 0:01:29]}  Rg8 {[%clk 0:01:08]} 31. Qc7 {[%clk 0:01:28]}  Rf8 {[%clk 0:00:56]} 32. Qxa7 {[%clk 0:01:25]}  Qd2 {[%clk 0:00:47]} 33. Ree3 {[%clk 0:01:24]}  Qd1+ {[%clk 0:00:45]} 34. Kh2 {[%clk 0:01:18]}  Qxh5+ {[%clk 0:00:46]} 35. Rh3 {[%clk 0:01:18]}  Bxh3 {[%clk 0:00:45]} 36. Rxh3 {[%clk 0:01:19]}  Qg5 {[%clk 0:00:43]} 37. Qc7 {[%clk 0:01:14]}  Qf5 {[%clk 0:00:37]} 38. Rf3 {[%clk 0:01:12]}  Qh5+ {[%clk 0:00:36]} 39. Kg1 {[%clk 0:01:12]}  Kg8 {[%clk 0:00:31]} 40. a5 {[%clk 0:01:11]}  Ra8 {[%clk 0:00:29]} 41. a6 {[%clk 0:01:09]}  e5 {[%clk 0:00:15]} 42. Qb7 {[%clk 0:01:08]}  Rf8 {[%clk 0:00:10]} 43. a7 {[%clk 0:01:07]}  e4 {[%clk 0:00:06]} 44. a8=Q {[%clk 0:00:51]}  exf3 {[%clk 0:00:05]} 45. Qaa6 {[%clk 0:00:43]}  Qg5 {[%clk 0:00:03]} 46. Qf1 {[%clk 0:00:39]}  Re8 {[%clk 0:00:03]} 47. g3 {[%clk 0:00:34]}  Qd2 {[%clk 0:00:02]} 48. Qbb1 {[%clk 0:00:32]}  Qxc3 {[%clk 0:00:02]} 49. Kh2 {[%clk 0:00:32]}  Qxd4 {[%clk 0:00:02]} 50. Qbd3 {[%clk 0:00:31]}  Qf6 {[%clk 0:00:02]} 51. Qxd5 {[%clk 0:00:30]}  Re5 {[%clk 0:00:01]} 52. Qa8+ {[%clk 0:00:29]}  Kh7 {[%clk 0:00:01]} 53. Qd3+ {[%clk 0:00:27]}  g6 {[%clk 0:00:01]} 54. Qdd8 {[%clk 0:00:25]} 1-0


[Site "https://www.chess.com"]

[Event "Titled Tuesday Blitz March 01 Late 2022"]
[White "Janturin, Artur"]
[Black "Pinheiro, Iung Alicio de O."]
[WhiteFideId "4130022"]
[BlackFideId "2104350"]
[WhiteElo "2356"]
[BlackElo "2531"]
[Result "0-1"]
[Round "09"]
[TimeControl "180+1"]
[Date "2022.03.02"]
[WhiteClock "0:00:01"]
[BlackClock "0:00:06"]

1. b3 {[%clk 0:02:52]}  c5 {[%clk 0:02:56]} 2. Bb2 {[%clk 0:02:51]}  d6 {[%clk 0:02:57]} 3. e3 {[%clk 0:02:51]}  Nc6 {[%clk 0:02:51]} 4. Nf3 {[%clk 0:02:50]}  e5 {[%clk 0:02:51]} 5. d4 {[%clk 0:02:50]}  e4 {[%clk 0:02:42]} 6. d5 {[%clk 0:02:50]}  Nb4 {[%clk 0:02:01]} 7. Nfd2 {[%clk 0:01:34]}  f5 {[%clk 0:01:49]} 8. c4 {[%clk 0:01:20]}  Nf6 {[%clk 0:01:47]} 9. a3 {[%clk 0:01:19]}  Na6 {[%clk 0:01:43]} 10. Nc3 {[%clk 0:01:19]}  Be7 {[%clk 0:01:42]} 11. f3 {[%clk 0:01:17]}  O-O {[%clk 0:01:02]} 12. fxe4 {[%clk 0:01:08]}  fxe4 {[%clk 0:01:01]} 13. Ndxe4 {[%clk 0:01:09]}  Ng4 {[%clk 0:00:56]} 14. Bd3 {[%clk 0:01:02]}  Bh4+ {[%clk 0:00:31]} 15. g3 {[%clk 0:01:02]}  Bg5 {[%clk 0:00:31]} 16. Qe2 {[%clk 0:00:22]}  Bxe3 {[%clk 0:00:21]} 17. h3 {[%clk 0:00:15]}  Ne5 {[%clk 0:00:21]} 18. Qxe3 {[%clk 0:00:14]}  Rf3 {[%clk 0:00:20]} 19. Qg5 {[%clk 0:00:08]}  Nxd3+ {[%clk 0:00:12]} 20. Ke2 {[%clk 0:00:08]}  Qf8 {[%clk 0:00:12]} 21. Raf1 {[%clk 0:00:07]}  Ne5 {[%clk 0:00:08]} 22. Nxd6 {[%clk 0:00:01]}  Bxh3 {[%clk 0:00:06]} 0-1


[Site "https://www.chess.com"]

[Event "Titled Tuesday Blitz March 01 Late 2022"]
[White "Jaskolka, Tomasz"]
[Black "Kostiukov, Alexandr"]
[WhiteFideId "1170791"]
[BlackFideId "14108100"]
[WhiteElo "2054"]
[BlackElo "2202"]
[Result "0-1"]
[Round "09"]
[TimeControl "180+1"]
[Date "2022.03.02"]
[WhiteClock "0:00:10"]
[BlackClock "0:00:06"]

1. d4 {[%clk 0:02:59]}  g6 {[%clk 0:02:56]} 2. Bf4 {[%clk 0:02:59]}  Bg7 {[%clk 0:02:51]} 3. Nc3 {[%clk 0:02:59]}  d6 {[%clk 0:02:51]} 4. e4 {[%clk 0:02:59]}  e5 {[%clk 0:02:51]} 5. dxe5 {[%clk 0:02:58]}  dxe5 {[%clk 0:02:52]} 6. Qxd8+ {[%clk 0:02:58]}  Kxd8 {[%clk 0:02:53]} 7. Bg5+ {[%clk 0:02:59]}  f6 {[%clk 0:02:53]} 8. Be3 {[%clk 0:02:59]}  Be6 {[%clk 0:02:51]} 9. O-O-O+ {[%clk 0:02:58]}  Nd7 {[%clk 0:02:51]} 10. f4 {[%clk 0:02:58]}  Bh6 {[%clk 0:02:43]} 11. g3 {[%clk 0:02:53]}  c6 {[%clk 0:02:34]} 12. Kb1 {[%clk 0:02:52]}  Kc7 {[%clk 0:02:32]} 13. Nf3 {[%clk 0:02:46]}  Bg4 {[%clk 0:02:27]} 14. Be2 {[%clk 0:02:45]}  Ne7 {[%clk 0:02:09]} 15. Bc1 {[%clk 0:02:41]}  Rad8 {[%clk 0:01:58]} 16. fxe5 {[%clk 0:02:15]}  Bxc1 {[%clk 0:01:53]} 17. exf6 {[%clk 0:02:16]}  Bh6 {[%clk 0:01:25]} 18. fxe7 {[%clk 0:02:15]}  Rde8 {[%clk 0:01:25]} 19. h3 {[%clk 0:01:56]}  Bxf3 {[%clk 0:01:17]} 20. Bxf3 {[%clk 0:01:56]}  Rxe7 {[%clk 0:01:18]} 21. Bg2 {[%clk 0:01:41]}  Ne5 {[%clk 0:01:15]} 22. Rhf1 {[%clk 0:01:40]}  Rf8 {[%clk 0:01:10]} 23. Rxf8 {[%clk 0:01:39]}  Bxf8 {[%clk 0:01:11]} 24. b3 {[%clk 0:01:36]}  b5 {[%clk 0:00:58]} 25. Kb2 {[%clk 0:01:34]}  Bg7 {[%clk 0:00:54]} 26. Kc1 {[%clk 0:01:26]}  Bh6+ {[%clk 0:00:48]} 27. Kb1 {[%clk 0:01:24]}  a5 {[%clk 0:00:47]} 28. Ne2 {[%clk 0:01:22]}  a4 {[%clk 0:00:40]} 29. bxa4 {[%clk 0:01:17]}  bxa4 {[%clk 0:00:38]} 30. Kb2 {[%clk 0:01:18]}  Nc4+ {[%clk 0:00:37]} 31. Kc3 {[%clk 0:01:15]}  Ne3 {[%clk 0:00:37]} 32. Rg1 {[%clk 0:01:15]}  Nxg2 {[%clk 0:00:31]} 33. Rxg2 {[%clk 0:01:16]}  Rxe4 {[%clk 0:00:31]} 34. h4 {[%clk 0:00:52]}  c5 {[%clk 0:00:30]} 35. Kd3 {[%clk 0:00:48]}  Re3+ {[%clk 0:00:27]} 36. Kc4 {[%clk 0:00:48]}  Kc6 {[%clk 0:00:27]} 37. Nc3 {[%clk 0:00:39]}  Bg7 {[%clk 0:00:20]} 38. Nxa4 {[%clk 0:00:38]}  Re4+ {[%clk 0:00:17]} 39. Kb3 {[%clk 0:00:39]}  Rb4+ {[%clk 0:00:17]} 40. Ka3 {[%clk 0:00:39]}  Kb5 {[%clk 0:00:17]} 41. c4+ {[%clk 0:00:36]}  Rxc4 {[%clk 0:00:13]} 42. Nxc5 {[%clk 0:00:19]}  Kxc5 {[%clk 0:00:12]} 43. g4 {[%clk 0:00:17]}  Rc3+ {[%clk 0:00:12]} 44. Ka4 {[%clk 0:00:17]}  Rc4+ {[%clk 0:00:11]} 45. Ka3 {[%clk 0:00:17]}  Bc3 {[%clk 0:00:10]} 46. Kb3 {[%clk 0:00:16]}  Bd4 {[%clk 0:00:10]} 47. h5 {[%clk 0:00:15]}  Rc3+ {[%clk 0:00:09]} 48. Ka4 {[%clk 0:00:16]}  Rc4+ {[%clk 0:00:09]} 49. Kb3 {[%clk 0:00:16]}  Rb4+ {[%clk 0:00:09]} 50. Ka3 {[%clk 0:00:16]}  Kc4 {[%clk 0:00:07]} 51. Rc2+ {[%clk 0:00:15]}  Bc3 {[%clk 0:00:07]} 52. hxg6 {[%clk 0:00:14]}  Rb6 {[%clk 0:00:06]} 53. Rxc3+ {[%clk 0:00:07]}  Kxc3 {[%clk 0:00:07]} 54. Ka4 {[%clk 0:00:07]}  Rxg6 {[%clk 0:00:07]} 55. Kb5 {[%clk 0:00:06]}  Rxg4 {[%clk 0:00:08]} 56. a4 {[%clk 0:00:07]}  Rg8 {[%clk 0:00:07]} 57. a5 {[%clk 0:00:06]}  h5 {[%clk 0:00:08]} 58. a6 {[%clk 0:00:06]}  h4 {[%clk 0:00:08]} 59. a7 {[%clk 0:00:07]}  h3 {[%clk 0:00:09]} 60. Kb6 {[%clk 0:00:07]}  h2 {[%clk 0:00:09]} 61. Kc7 {[%clk 0:00:08]}  h1=Q {[%clk 0:00:09]} 62. a8=Q {[%clk 0:00:09]}  Qxa8 {[%clk 0:00:08]} 63. Kb6 {[%clk 0:00:10]}  Qb8+ {[%clk 0:00:08]} 64. Ka5 {[%clk 0:00:10]}  Rg5+ {[%clk 0:00:08]} 65. Ka6 {[%clk 0:00:10]}  Qd6+ {[%clk 0:00:05]} 66. Kb7 {[%clk 0:00:09]}  Rg7+ {[%clk 0:00:06]} 67. Ka8 {[%clk 0:00:10]}  Qf8# {[%clk 0:00:06]} 0-1


[Site "https://www.chess.com"]